fUSD/lending_fUSD_20260320
["ID","MTS","AMOUNT","RATE_DAILY","PERIOD"]
[408642033,1774036288251,-300.0,0.00033972,2]
[408642034,1774036288261,-875.21,0.00033972,2]
[408642035,1774036288271,-536.33,0.00033972,120]
[408642036,1774036288281,-966.16,0.00033972,120]
[408642037,1774036288290,-1260.41,0.00033972,2]
[408642038,1774036288301,-1443.59,0.00033972,7]
[408642039,1774036288311,-500.0,0.00033972,5]
[408642040,1774036288320,-2059.09,0.00033972,120]
[408642041,1774036288330,-1117.66,0.00033972,120]
[408642042,1774036288340,-8442.63,0.00033972,60]
[408642043,1774036288349,-3352.31,0.00033972,120]
[408642044,1774036288359,-547.44,0.00033972,30]
[408642045,1774036288368,-2137.61,0.00033972,120]
[408642046,1774036288378,-2648.26,0.00033972,120]
[408642047,1774036288388,-15731.63,0.00033972,120]
[408642048,1774036288398,-500.0,0.00033972,2]
[408642049,1774036288408,-1772.79,0.00033972,120]
[408642050,1774036288419,-2157.0,0.00033972,2]
[408642051,1774036288429,-575.18,0.00033972,120]
[408642052,1774036288438,-1441.92,0.00033972,120]
[408642053,1774036288448,-620.5,0.00033972,2]
[408642054,1774036288457,-810.21,0.00033972,2]
[408642055,1774036288466,-1141.42,0.00033972,7]
[408642056,1774036288476,-3708.46,0.00033972,2]
[408642057,1774036288486,-1634.21,0.00033978,2]
[408642058,1774036288496,-800.0,0.00033998,2]
[408642059,1774036288506,-800.0,0.00033998,2]
[408642060,1774036288518,-754.0,0.00033998,2]
[408642061,1774036288529,-5000.0,0.00034,7]
[408642062,1774036288538,-10000.0,0.00034,120]
[408642063,1774036288548,-12015.9469,0.00034,2]
[408642064,1774036288557,-2000.0,0.00034,2]
[408642065,1774036288567,-273.19,0.00034077,120]
[408642066,1774036288576,-155.42931,0.00034088,7]
[408642067,1774036288585,-1001.38,0.00034167,120]
[408642068,1774036288595,-1029.45407458,0.000342,30]
[408642069,1774036288605,-196.02,0.00034212,120]
[408642070,1774036288614,-959.05495093,0.00034245,60]
[408642071,1774036288624,-959.05495092,0.00034245,60]
[408642072,1774036288633,-649.71,0.00034246,120]
[408642073,1774036288643,-852.59,0.00034246,120]
[408642074,1774036288653,-500.0,0.00034246,2]
[408642075,1774036288663,-915.83,0.00034246,120]
[408642076,1774036288672,-2459.36,0.00034246,2]
[408642077,1774036288682,-752.86,0.00034246,2]
[408642078,1774036288692,-816.89,0.00034246,120]
[408642079,1774036288701,-500.0,0.00034246,120]
[408642080,1774036288710,-3098.0,0.00034246,120]
[408642081,1774036288720,-1052.59,0.00034246,120]
[408642082,1774036288730,-4592.52,0.00034246,120]
[408642083,1774036288740,-587.08,0.00034246,120]
[408642084,1774036288749,-3548.68,0.00034246,120]
[408642085,1774036288759,-1044.81,0.00034246,14]
[408642086,1774036288768,-926.21,0.00034246,120]
[408642087,1774036288777,-732.11,0.00034246,120]
[408642088,1774036288788,-824.15,0.00034246,120]
[408642089,1774036288799,-716.03,0.00034246,120]
[408642090,1774036288810,-500.0,0.00034246,120]
[408642091,1774036288820,-729.27,0.00034246,120]
[408642092,1774036288830,-500.0,0.00034246,2]
[408642093,1774036288840,-500.0,0.00034246,120]
[408642094,1774036288850,-919.19,0.00034246,60]
[408642095,1774036288862,-5739.37,0.00034246,7]
[408642096,1774036288872,-500.0,0.00034246,120]
[408642097,1774036288882,-1366.47,0.00034246,14]
[408642098,1774036288892,-685.6,0.00034246,14]
[408642099,1774036288902,-300.0,0.00034246,2]
[408642100,1774036288912,-875.21,0.00034246,2]
[408642101,1774036288921,-536.33,0.00034246,120]
[408642102,1774036288931,-966.16,0.00034246,120]
[408642103,1774036288942,-1260.41,0.00034246,2]
[408642104,1774036288952,-1443.59,0.00034246,7]
[408642105,1774036288963,-500.0,0.00034246,5]
[408642106,1774036288973,-2059.09,0.00034246,120]
[408642107,1774036288984,-1117.66,0.00034246,120]
[408642108,1774036288994,-8442.63,0.00034246,60]
[408642109,1774036289005,-3352.31,0.00034246,120]
[408642110,1774036289015,-547.44,0.00034246,30]
[408642111,1774036289024,-2137.61,0.00034246,120]
[408642112,1774036289034,-2648.26,0.00034246,120]
[408642113,1774036289044,-15731.63,0.00034246,120]
[408642114,1774036289055,-371.22008278,0.00034246,2]
[408642115,1774036289065,-1772.79,0.00034246,120]
[408642116,1774036289075,-2157.0,0.00034246,2]
[408642117,1774036289085,-575.18,0.00034246,120]
[408642118,1774036289095,-1441.92,0.00034246,120]
[408642119,1774036289105,-620.5,0.00034246,2]
[408642120,1774036289115,-810.21,0.00034246,2]
[408642121,1774036289125,-1141.42,0.00034246,7]
[408642122,1774036289134,-3708.46,0.00034246,2]
[408642123,1774036289144,-612.84,0.00034247,5]
[408642124,1774036289154,-155.42931,0.00034288,7]
[408642125,1774036289163,-22910.0622089,0.00034299,120]
[408642126,1774036289173,-273.19,0.00034351,120]
[408642127,1774036289182,-276.15,0.0003437,5]
[408642128,1774036289191,-1001.38,0.00034375,120]
[408642129,1774036289201,-155.42931,0.00034488,7]
[408642130,1774036289210,-1744.88765073,0.0003449,2]
[408642131,1774036289220,-433.0,0.0003449,10]
[408642132,1774036289230,-2000.0,0.000345,7]
[408642133,1774036289240,-5000.0,0.000345,14]
[408642134,1774036289249,-649.71,0.0003452,120]
[408642135,1774036289259,-1918.10990185,0.0003452,60]
[408642136,1774036289268,-852.59,0.0003452,120]
[408642137,1774036289277,-500.0,0.0003452,2]
[408642138,1774036289287,-915.83,0.0003452,120]
[408642139,1774036289296,-2459.36,0.0003452,2]
[408642140,1774036289306,-752.86,0.0003452,2]
[408642141,1774036289317,-816.89,0.0003452,120]
[408642142,1774036289326,-500.0,0.0003452,120]
[408642143,1774036289336,-3098.0,0.0003452,120]
[408642144,1774036289346,-1052.59,0.0003452,120]
[408642145,1774036289356,-4592.52,0.0003452,120]
[408642146,1774036289366,-587.08,0.0003452,120]
[408642147,1774036289376,-3548.68,0.0003452,120]
[408642148,1774036289386,-1044.81,0.0003452,14]
[408642149,1774036289395,-926.21,0.0003452,120]
[408642150,1774036289405,-732.11,0.0003452,120]
[408642151,1774036289415,-824.15,0.0003452,120]
[408642152,1774036289425,-716.03,0.0003452,120]
[408642153,1774036289434,-500.0,0.0003452,120]
[408642154,1774036289444,-729.27,0.0003452,120]
[408642155,1774036289454,-500.0,0.0003452,2]
[408642156,1774036289463,-500.0,0.0003452,120]
[408642157,1774036289473,-919.19,0.0003452,60]
[408642158,1774036289483,-5739.37,0.0003452,7]
[408642159,1774036289492,-500.0,0.0003452,120]
[408642160,1774036289502,-1366.47,0.0003452,14]
[408642161,1774036289512,-685.6,0.0003452,14]
[408642162,1774036289526,-300.0,0.0003452,2]
[408642163,1774036289536,-875.21,0.0003452,2]
[408642164,1774036289545,-536.33,0.0003452,120]
[408642165,1774036289555,-966.16,0.0003452,120]
[408642166,1774036289566,-1260.41,0.0003452,2]
[408642167,1774036289576,-1443.59,0.0003452,7]
[408642168,1774036289585,-500.0,0.0003452,5]
[408642169,1774036289595,-2059.09,0.0003452,120]
[408642170,1774036289604,-1117.66,0.0003452,120]
[408642171,1774036289614,-8442.63,0.0003452,60]
[408642172,1774036289624,-3352.31,0.0003452,120]
[408642173,1774036289634,-547.44,0.0003452,30]
[408642174,1774036289644,-2137.61,0.0003452,120]
[408642175,1774036289653,-2648.26,0.0003452,120]
[408642176,1774036289662,-15731.63,0.0003452,120]
[408642177,1774036289672,-1772.79,0.0003452,120]
[408642178,1774036289681,-2157.0,0.0003452,2]
[408642179,1774036289691,-575.18,0.0003452,120]
[408642180,1774036289700,-1441.92,0.0003452,120]
[408642181,1774036289709,-620.5,0.0003452,2]
[408642182,1774036289718,-810.21,0.0003452,2]
[408642183,1774036289728,-1141.42,0.0003452,7]
[408642184,1774036289738,-900.0,0.00034521,5]
[408642185,1774036289747,-1001.38,0.00034583,120]
[408642186,1774036289757,-232.0,0.00034606,30]
[408642187,1774036289766,-273.19,0.00034625,120]
[408642188,1774036289776,-181.17,0.00034682,60]
[408642189,1774036289785,-181.17,0.00034682,60]
[408642190,1774036289795,-181.18,0.00034682,60]
[408642191,1774036289804,-155.42931,0.00034688,7]
[408642192,1774036289814,-150.0,0.00034696,2]
[408642193,1774036289823,-238.26,0.00034696,60]
[408642194,1774036289832,-2089.43,0.0003471,2]
[408642195,1774036289842,-1820.49,0.00034712,30]
[408642196,1774036289851,-1850.01135744,0.00034734,2]
[408642197,1774036289861,-151.43542618,0.00034737,56]
[408642198,1774036289870,-1001.38,0.00034792,120]
[408642199,1774036289880,-1918.10990185,0.00034793,60]
[408642200,1774036289889,-649.71,0.00034794,120]
[408642201,1774036289900,-852.59,0.00034794,120]
[408642202,1774036289909,-500.0,0.00034794,2]
[408642203,1774036289918,-915.83,0.00034794,120]
[408642204,1774036289927,-2459.36,0.00034794,2]
[408642205,1774036289937,-752.86,0.00034794,2]
[408642206,1774036289946,-816.89,0.00034794,120]
[408642207,1774036289955,-500.0,0.00034794,120]
[408642208,1774036289965,-3098.0,0.00034794,120]
[408642209,1774036289974,-1052.59,0.00034794,120]
[408642210,1774036289984,-4592.52,0.00034794,120]
[408642211,1774036289993,-587.08,0.00034794,120]
[408642212,1774036290002,-3548.68,0.00034794,120]
[408642213,1774036290011,-1044.81,0.00034794,14]
[408642214,1774036290021,-926.21,0.00034794,120]
[408642215,1774036290030,-732.11,0.00034794,120]
[408642216,1774036290040,-824.15,0.00034794,120]
[408642217,1774036290050,-716.03,0.00034794,120]
[408642218,1774036290062,-500.0,0.00034794,120]
[408642219,1774036290073,-729.27,0.00034794,120]
[408642220,1774036290082,-500.0,0.00034794,2]
[408642221,1774036290093,-500.0,0.00034794,120]
[408642222,1774036290103,-919.19,0.00034794,60]
[408642223,1774036290114,-5739.37,0.00034794,7]
[408642224,1774036290124,-500.0,0.00034794,120]
[408642225,1774036290134,-1366.47,0.00034794,14]
[408642226,1774036290144,-685.6,0.00034794,14]
[408642227,1774036290155,-300.0,0.00034794,2]
[408642228,1774036290165,-875.21,0.00034794,2]
[408642229,1774036290174,-536.33,0.00034794,120]
[408642230,1774036290302,-966.16,0.00034794,120]
[408642231,1774036290323,-1260.41,0.00034794,2]
[408642232,1774036290332,-1443.59,0.00034794,7]
[408642233,1774036290342,-500.0,0.00034794,5]
[408642234,1774036290351,-2059.09,0.00034794,120]
[408642235,1774036290361,-1117.66,0.00034794,120]
[408642236,1774036290371,-8442.63,0.00034794,60]
[408642237,1774036290380,-3352.31,0.00034794,120]
[408642238,1774036290390,-547.44,0.00034794,30]
[408642239,1774036290400,-2137.61,0.00034794,120]
[408642240,1774036290410,-2648.26,0.00034794,120]
[408642241,1774036290419,-15731.63,0.00034794,120]
[408642242,1774036290429,-1772.79,0.00034794,120]
[408642243,1774036290439,-2157.0,0.00034794,2]
[408642244,1774036290449,-575.18,0.00034794,120]
[408642245,1774036290458,-1441.92,0.00034794,120]
[408642246,1774036290468,-620.5,0.00034794,2]
[408642247,1774036290478,-810.21,0.00034794,2]
[408642248,1774036290488,-1141.42,0.00034794,7]
[408642249,1774036290499,-1500.0,0.00034795,2]
[408642250,1774036290509,-1634.21,0.00034818,2]
[408642251,1774036290521,-1951.8297443,0.0003488,120]
[408642252,1774036290530,-155.42931,0.00034888,7]
[408642253,1774036290539,-273.19,0.00034899,120]
[408642254,1774036290548,-242.06867004,0.000349,120]
[408642255,1774036290558,-239.52,0.00034983,7]
[408642256,1774036290567,-650.0,0.00034999,30]
[408642257,1774036290578,-650.0,0.00034999,30]
[408642258,1774036290588,-520.0,0.00034999,30]
[408642259,1774036290598,-1001.38,0.00035,120]
[408642260,1774036290607,-151.0,0.00035,5]
[408642261,1774036290617,-100210.10309395,0.00035,4]
[408642262,1774036290626,-200.0,0.00035,5]
[408642263,1774036290635,-2045.0,0.00035,12]
[408642264,1774036290645,-1932.29147303,0.00035,2]
[408642265,1774036290654,-10000.0,0.00035,7]
[408642266,1774036290664,-10000.0,0.00035,120]
[408642267,1774036290673,-5000.0,0.00035,5]
[408642268,1774036290682,-9640.65911653,0.00035,90]
[408642269,1774036290691,-401.99893216,0.00035,14]
[408642270,1774036290700,-239789.89690605,0.00035,4]
[408642271,1774036290709,-191.15618403,0.00035,120]
[408642272,1774036290718,-4444.0,0.00035,120]
[408642273,1774036290728,-10000.0,0.00035,120]
[408642274,1774036290739,-202.99289067,0.00035,30]
[408642275,1774036290751,-802.4067651,0.00035,2]
[408642276,1774036290761,-200.0,0.00035,3]
[408642277,1774036290773,-160.0,0.00035,2]
[408642278,1774036290783,-500.0,0.00035,120]
[408642279,1774036290793,-322.0,0.00035,5]
[408642280,1774036290803,-4061.0,0.00035,30]
[408642281,1774036290814,-170383.94065205,0.00035,120]
[408642282,1774036290825,-20250.33488089,0.00035002,56]
[408642283,1774036290835,-1918.10990185,0.00035067,60]
[408642284,1774036290845,-649.71,0.00035068,120]
[408642285,1774036290855,-852.59,0.00035068,120]
[408642286,1774036290865,-500.0,0.00035068,2]
[408642287,1774036290875,-915.83,0.00035068,120]
[408642288,1774036290885,-2459.36,0.00035068,2]
[408642289,1774036290895,-752.86,0.00035068,2]
[408642290,1774036290906,-816.89,0.00035068,120]
[408642291,1774036290916,-500.0,0.00035068,120]
[408642292,1774036290926,-3098.0,0.00035068,120]
[408642293,1774036290937,-1052.59,0.00035068,120]
[408642294,1774036290947,-4592.52,0.00035068,120]
[408642295,1774036290956,-587.08,0.00035068,120]
[408642296,1774036290966,-3548.68,0.00035068,120]
[408642297,1774036290975,-1044.81,0.00035068,14]
[408642298,1774036290985,-926.21,0.00035068,120]
[408642299,1774036290994,-732.11,0.00035068,120]
[408642300,1774036291003,-824.15,0.00035068,120]
[408642301,1774036291012,-716.03,0.00035068,120]
[408642302,1774036291022,-500.0,0.00035068,120]
[408642303,1774036291031,-729.27,0.00035068,120]
[408642304,1774036291041,-264.16759634,0.00035068,2]
[408642305,1774036291050,-500.0,0.00035068,120]
[408642306,1774036291059,-919.19,0.00035068,60]
[408642307,1774036291069,-5739.37,0.00035068,7]
[408642308,1774036291078,-500.0,0.00035068,120]
[408642309,1774036291088,-1366.47,0.00035068,14]
[408642310,1774036291098,-685.6,0.00035068,14]
[408642311,1774036291108,-300.0,0.00035068,2]
[408642312,1774036291118,-875.21,0.00035068,2]
[408642313,1774036291127,-536.33,0.00035068,120]
[408642314,1774036291135,-966.16,0.00035068,120]
[408642315,1774036291144,-1260.41,0.00035068,2]
[408642316,1774036291157,-1443.59,0.00035068,7]
[408642317,1774036291166,-500.0,0.00035068,5]
[408642318,1774036291177,-2059.09,0.00035068,120]
[408642319,1774036291186,-1117.66,0.00035068,120]
[408642320,1774036291195,-8442.63,0.00035068,60]
[408642321,1774036291205,-3352.31,0.00035068,120]
[408642322,1774036291214,-547.44,0.00035068,30]
[408642323,1774036291223,-2137.61,0.00035068,120]
[408642324,1774036291233,-2648.26,0.00035068,120]
[408642325,1774036291242,-15731.63,0.00035068,120]
[408642326,1774036291251,-1772.79,0.00035068,120]
[408642327,1774036291261,-2157.0,0.00035068,2]
[408642328,1774036291271,-575.18,0.00035068,120]
[408642329,1774036291281,-1441.92,0.00035068,120]
[408642330,1774036291290,-620.5,0.00035068,2]
[408642331,1774036291299,-810.21,0.00035068,2]
[408642332,1774036291308,-1141.42,0.00035068,7]
[408642333,1774036291318,-187.0,0.00035068,10]
[408642334,1774036291327,-155.42931,0.00035088,7]
[408642335,1774036291337,-2000.0,0.000351,120]
[408642336,1774036291347,-884.0,0.000351,120]
[408642337,1774036291357,-273.19,0.00035173,120]
[408642338,1774036291367,-1001.38,0.00035208,120]
[408642339,1774036291376,-155.42931,0.00035288,7]
[408642340,1774036291385,-379.42,0.00035296,7]
[408642341,1774036291394,-150.0,0.00035296,7]
[408642342,1774036291405,-2500.0,0.000353,14]
[408642343,1774036291414,-15802.9138,0.000353,2]
[408642344,1774036291423,-486.51,0.00035328,2]
[408642345,1774036291432,-1918.10990185,0.00035341,60]
[408642346,1774036291442,-649.71,0.00035342,120]
[408642347,1774036291451,-852.59,0.00035342,120]
[408642348,1774036291460,-500.0,0.00035342,2]
[408642349,1774036291473,-915.83,0.00035342,120]
[408642350,1774036291482,-2459.36,0.00035342,2]
[408642351,1774036291491,-752.86,0.00035342,2]
[408642352,1774036291501,-816.89,0.00035342,120]
[408642353,1774036291511,-500.0,0.00035342,120]
[408642354,1774036291527,-3098.0,0.00035342,120]
[408642355,1774036291537,-1052.59,0.00035342,120]
[408642356,1774036291547,-4592.52,0.00035342,120]
[408642357,1774036291556,-587.08,0.00035342,120]
[408642358,1774036291565,-3548.68,0.00035342,120]
[408642359,1774036291575,-1044.81,0.00035342,14]
[408642360,1774036291585,-926.21,0.00035342,120]
[408642361,1774036291594,-732.11,0.00035342,120]
[408642362,1774036291604,-824.15,0.00035342,120]
[408642363,1774036291613,-716.03,0.00035342,120]
[408642364,1774036291623,-500.0,0.00035342,120]
[408642365,1774036291631,-729.27,0.00035342,120]
[408642366,1774036291641,-500.0,0.00035342,120]
[408642367,1774036291651,-919.19,0.00035342,60]
[408642368,1774036291660,-5739.37,0.00035342,7]
[408642369,1774036291670,-500.0,0.00035342,120]
[408642370,1774036291680,-1366.47,0.00035342,14]
[408642371,1774036291690,-685.6,0.00035342,14]
[408642372,1774036291700,-300.0,0.00035342,2]
[408642373,1774036291710,-875.21,0.00035342,2]
[408642374,1774036291719,-536.33,0.00035342,120]
[408642375,1774036291729,-966.16,0.00035342,120]
[408642376,1774036291739,-1260.41,0.00035342,2]
[408642377,1774036291748,-1443.59,0.00035342,7]
[408642378,1774036291758,-500.0,0.00035342,5]
[408642379,1774036291768,-2059.09,0.00035342,120]
[408642380,1774036291777,-1117.66,0.00035342,120]
[408642381,1774036291786,-8442.63,0.00035342,60]
[408642382,1774036291795,-3352.31,0.00035342,120]
[408642383,1774036291806,-547.44,0.00035342,30]
[408642384,1774036291816,-2137.61,0.00035342,120]
[408642385,1774036291826,-2648.26,0.00035342,120]
[408642386,1774036291836,-15731.63,0.00035342,120]
[408642387,1774036291846,-1772.79,0.00035342,120]
[408642388,1774036291857,-2157.0,0.00035342,2]
[408642389,1774036291867,-575.18,0.00035342,120]
[408642390,1774036291876,-1441.92,0.00035342,120]
[408642391,1774036291886,-620.5,0.00035342,2]
[408642392,1774036291896,-810.21,0.00035342,2]
[408642393,1774036291906,-1141.42,0.00035342,7]
[408642394,1774036291916,-1200.0,0.00035342,5]
[408642395,1774036291926,-800.0,0.00035358,21]
[408642396,1774036291936,-500.0,0.00035358,21]
[408642397,1774036291947,-152.0,0.0003538,30]
[408642398,1774036291956,-1001.38,0.00035417,120]
[408642399,1774036291966,-273.19,0.00035447,120]
[408642400,1774036291976,-155.42931,0.00035488,7]
[408642401,1774036291986,-10000.0,0.000355,7]
[408642402,1774036291996,-232.0,0.00035606,30]
[408642403,1774036292005,-169125.98396803,0.0003561,2]
[408642404,1774036292016,-4464.94858754,0.0003561,2]
[408642405,1774036292026,-1918.10990185,0.00035615,60]
[408642406,1774036292036,-649.71,0.00035616,120]
[408642407,1774036292047,-852.59,0.00035616,120]
[408642408,1774036292058,-623.78096899,0.00035616,2]
[408642409,1774036292068,-915.83,0.00035616,120]
[408642410,1774036292078,-2459.36,0.00035616,2]
[408642411,1774036292088,-752.86,0.00035616,2]
[408642412,1774036292098,-816.89,0.00035616,120]
[408642413,1774036292107,-159.99465244,0.00035616,120]
[408642414,1774036292117,-3098.0,0.00035616,120]
[408642415,1774036292126,-1052.59,0.00035616,120]
[408642416,1774036292136,-4592.52,0.00035616,120]
[408642417,1774036292148,-587.08,0.00035616,120]
[408642418,1774036292157,-3548.68,0.00035616,120]
[408642419,1774036292167,-1044.81,0.00035616,14]
[408642420,1774036292177,-926.21,0.00035616,120]
[408642421,1774036292187,-732.11,0.00035616,120]
[408642422,1774036292197,-824.15,0.00035616,120]
[408642423,1774036292207,-716.03,0.00035616,120]
[408642424,1774036292218,-199.00881761,0.00035616,120]
[408642425,1774036292228,-729.27,0.00035616,120]
[408642426,1774036292237,-1223.55389487,0.00035616,120]
[408642427,1774036292247,-158.11180917,0.00035616,20]
[408642428,1774036292255,-488.24048666,0.00035616,120]
[408642429,1774036292265,-919.19,0.00035616,60]
[408642430,1774036292274,-5739.37,0.00035616,7]
[408642431,1774036292282,-500.0,0.00035616,120]
[408642432,1774036292291,-1366.47,0.00035616,14]
[408642433,1774036292300,-685.6,0.00035616,14]
[408642434,1774036292308,-300.0,0.00035616,2]
[408642435,1774036292318,-875.21,0.00035616,2]
[408642436,1774036292327,-536.33,0.00035616,120]
[408642437,1774036292337,-966.16,0.00035616,120]
[408642438,1774036292345,-1260.41,0.00035616,2]
[408642439,1774036292353,-1443.59,0.00035616,7]
[408642440,1774036292362,-500.0,0.00035616,5]
[408642441,1774036292371,-2059.09,0.00035616,120]
[408642442,1774036292379,-1117.66,0.00035616,120]
[408642443,1774036292389,-8442.63,0.00035616,60]
[408642444,1774036292398,-3352.31,0.00035616,120]
[408642445,1774036292533,-547.44,0.00035616,30]
[408642446,1774036292543,-2137.61,0.00035616,120]
[408642447,1774036292552,-2648.26,0.00035616,120]
[408642448,1774036292562,-15731.63,0.00035616,120]
[408642449,1774036292571,-1772.79,0.00035616,120]
[408642450,1774036292580,-2157.0,0.00035616,2]
[408642451,1774036292588,-575.18,0.00035616,120]
[408642452,1774036292597,-1441.92,0.00035616,120]
[408642453,1774036292606,-620.5,0.00035616,2]
[408642454,1774036292615,-810.21,0.00035616,2]
[408642455,1774036292624,-1141.42,0.00035616,7]
[408642456,1774036292633,-2000.0,0.00035616,60]
[408642457,1774036292641,-2000.0,0.00035616,60]
[408642458,1774036292650,-2000.0,0.00035616,60]
[408642459,1774036292659,-2000.0,0.00035616,60]
[408642460,1774036292668,-2000.0,0.00035616,60]
[408642461,1774036292677,-2000.0,0.00035616,60]
[408642462,1774036292686,-2000.0,0.00035616,60]
[408642463,1774036292696,-2000.0,0.00035616,60]
[408642464,1774036292705,-2000.0,0.00035616,60]
[408642465,1774036292714,-2000.0,0.00035616,60]
[408642466,1774036292722,-2000.0,0.00035616,60]
[408642467,1774036292731,-2000.0,0.00035616,60]
[408642468,1774036292740,-2000.0,0.00035616,60]
[408642469,1774036292749,-2000.0,0.00035616,60]
[408642470,1774036292757,-2000.0,0.00035616,60]
[408642471,1774036292766,-2000.0,0.00035616,60]
[408642472,1774036292775,-2000.0,0.00035616,60]
[408642473,1774036292784,-2000.0,0.00035616,60]
[408642474,1774036292793,-2000.0,0.00035616,60]
[408642475,1774036292799,-2000.0,0.00035616,60]
[408642476,1774036292808,-2000.0,0.00035616,60]
[408642477,1774036292818,-2000.0,0.00035616,60]
[408642478,1774036292827,-2000.0,0.00035616,60]
[408642479,1774036292837,-2000.0,0.00035616,60]
[408642480,1774036292846,-2000.0,0.00035616,60]
[408642481,1774036292856,-2000.0,0.00035616,60]
[408642482,1774036292866,-2000.0,0.00035616,60]
[408642483,1774036292875,-2000.0,0.00035616,60]
[408642484,1774036292885,-2000.0,0.00035616,60]
[408642485,1774036292895,-2000.0,0.00035616,60]
[408642486,1774036292906,-2000.0,0.00035616,60]
[408642487,1774036292915,-2000.0,0.00035616,60]
[408642488,1774036292924,-2000.0,0.00035616,60]
[408642489,1774036292934,-2000.0,0.00035616,60]
[408642490,1774036292943,-2000.0,0.00035616,60]
[408642491,1774036292952,-2000.0,0.00035616,60]
[408642492,1774036292962,-2000.0,0.00035616,60]
[408642493,1774036292971,-2000.0,0.00035616,60]
[408642494,1774036292983,-2000.0,0.00035616,60]
[408642495,1774036292993,-2000.0,0.00035616,60]
[408642496,1774036293003,-2000.0,0.00035616,60]
[408642497,1774036293012,-2000.0,0.00035616,60]
[408642498,1774036293022,-2000.0,0.00035616,60]
[408642499,1774036293031,-2000.0,0.00035616,60]
[408642500,1774036293041,-2000.0,0.00035616,60]
[408642501,1774036293050,-2000.0,0.00035616,60]
[408642502,1774036293060,-2000.0,0.00035616,60]
[408642503,1774036293069,-2000.0,0.00035616,60]
[408642504,1774036293079,-2000.0,0.00035616,60]
[408642505,1774036293089,-2000.0,0.00035616,60]
[408642506,1774036293098,-2312.0,0.00035616,60]
[408642507,1774036293108,-500.0,0.00035616,7]
[408642508,1774036293117,-500.0,0.00035616,7]
[408642509,1774036293127,-500.0,0.00035616,7]
[408642510,1774036293136,-500.0,0.00035616,7]
[408642511,1774036293146,-500.0,0.00035616,7]
[408642512,1774036293157,-500.0,0.00035616,7]
[408642513,1774036293166,-500.0,0.00035616,7]
[408642514,1774036293175,-500.0,0.00035616,7]
[408642515,1774036293185,-500.0,0.00035616,7]
[408642516,1774036293195,-500.0,0.00035616,7]
[408642517,1774036293204,-500.0,0.00035616,7]
[408642518,1774036293213,-500.0,0.00035616,7]
[408642519,1774036293223,-500.0,0.00035616,7]
[408642520,1774036293233,-500.0,0.00035616,7]
[408642521,1774036293242,-500.0,0.00035616,7]
[408642522,1774036293251,-500.0,0.00035616,7]
[408642523,1774036293261,-500.0,0.00035616,7]
[408642524,1774036293270,-500.0,0.00035616,7]
[408642525,1774036293280,-500.0,0.00035616,7]
[408642526,1774036293291,-500.0,0.00035616,7]
[408642527,1774036293302,-500.0,0.00035616,7]
[408642528,1774036293312,-500.0,0.00035616,7]
[408642529,1774036293321,-500.0,0.00035616,7]
[408642530,1774036293331,-500.0,0.00035616,7]
[408642531,1774036293341,-261.3265048,0.00035616,7]
[408642532,1774036293351,-326.28278777,0.00035616,7]